Cogmind - Beta 16 @@@ ROGUE MODE // 2025.11.19 @ 11:17:42 Player: ChromeKnight Result: Destroyed by A7-NGZ(R) with Subdweller Beam Cannon Performance ------------- Evolutions (0) 0 Regions Visited (2) 400 Robots Destroyed (26) 130 Value Destroyed (455) 455 Prototype IDs (0) 0 Alien Tech Used (0) 0 Bonus (0) 0 TOTAL SCORE: 985 Bonus ------- None Cogmind --------- Core Integrity 0/250 Matter 270/300 Energy 250/250 System Corruption 0% Temperature Cool (9) Movement Core (1450) Ox28 Location -10/Subcaves Parts ------- > --- POWER (1) -------- Ion Engine > --- PROPULSION (2) --- (None) > --- UTILITY (2) ------ Huge Storage Unit > --- WEAPON (2) ------- Battle Rifle > --- INVENTORY (25) --- Light Ion Engine Wheel Structural Scanner Structural Scanner Visual Processing Unit Signal Interpreter Terrain Scanner Targeting Computer Makeshift Kinetic Plating Riot Gun Light Assault Rifle Light Assault Rifle Subdweller Shrapnel Launcher Multitool Peak State ------------ > --- POWER ------------ Ion Engine > --- PROPULSION ------- Light Treads Wheel > --- UTILITY ---------- Huge Storage Unit Seismic Detector > --- WEAPON ----------- EM Pulse Gun Battle Rifle > --- INVENTORY -------- Light Ion Engine Structural Scanner Structural Scanner Visual Processing Unit Signal Interpreter Terrain Scanner Targeting Computer Makeshift Kinetic Plating Riot Gun Light Assault Rifle Light Assault Rifle Subdweller Shrapnel Launcher Multitool [Rating: 10] Favorites ----------- Power Ion Engine Engine Ion Engine Propulsion Light Treads Treads Light Treads Wheel Wheel Utility Seismic Detector Device Seismic Detector Storage Huge Storage Unit Weapon EM Pulse Gun Energy Gun EM Pulse Gun Ballistic Gun Light Assault Rifle Build | -11 -10 -10 ------- Run | Yrd Mat Sub Slots Evolved . | . . . Power . | . . . Propulsion . | . . . Utility . | . . . Weapon . | . . . Parts Attached 16 | 6 7 3 Power 3 | 1 2 . Engine 3 | 1 2 . Core . | . . . Reactor . | . . . Propulsion 4 | 2 1 1 Treads 2 | 2 . . Leg . | . . . Wheel 2 | . 1 1 Hover . | . . . Flight . | . . . Utility 4 | 1 2 1 Device 2 | . 1 1 Storage 2 | 1 1 . Processor . | . . . Hackware . | . . . Protection . | . . . Artifact . | . . . Weapon 5 | 2 2 1 Energy Gun 3 | 1 2 . Energy Cannon . | . . . Ballistic Gun 2 | 1 . 1 Ballistic Cannon . | . . . Launcher . | . . . Special Weapon . | . . . Impact Weapon . | . . . Slashing Weapon . | . . . Piercing Weapon . | . . . Special Melee Weapon . | . . . Unidentified Prototypes . | . . . Parts Lost 9 | . 1 8 Power 1 | . 1 . Propulsion 4 | . . 4 Utility 2 | . . 2 Weapon 2 | . . 2 Highest Loss Streak 4 | . 1 4 To Critical Strikes . | . . . Average Backups 9 | . 8 11 Power . | . . 1 Propulsion . | . . . Utility 5 | . 5 6 Weapon 2 | . 1 3 Tool/Special . | . . . Unused Backups 16 | . 3 13 Power . | . . . Propulsion 1 | . . 1 Utility 8 | . 1 7 Weapon 5 | . 1 4 Tool/Special 2 | . 1 1 Average Slot Usage (%) 97 | . 99 92 Engine 13 | . 13 14 Treads 22 | . 27 13 Wheel 5 | . . 13 Device 13 | . 13 13 Storage 14 | . 14 14 Energy Gun 23 | . 25 18 Ballistic Gun 2 | . 2 2 Peak Build Rating 10 | 6 8 10 Average Rating 7 | 4 7 7 On Entrance 4 | . 6 8 Avg Prop Armor Cover (%) 13 | . 13 13 Naked Turns . | . . . Heaviest Build 90 | 11 89 90 Greatest Support 40 | 40 40 16 Greatest Overweight (x) 29 | . 5 29 Average Overweight (x) 3 | . 1 7 Largest Inventory Capacity 25 | 8 25 25 Average Capacity 20 | 6 18 25 Most Carried 14 | 1 12 14 Average Carried 9 | . 8 11 Final Capacity 25 | 8 25 25 Final Carried 14 | 1 11 14 Class Distribution -------------------- 100% | Mutant Dominant Class ---------------- Mutant | -10/Materials Mutant | -10/Subcaves Resources | -11 -10 -10 ----------- Run | Yrd Mat Sub Matter Collected 400 | 193 160 47 Remotely . | . . . Salvage Created 730 | . 589 141 Parts 56 | . 40 16 Haulers Intercepted 1 | . 1 . Recyclers Shooed 1 | . 1 . Parts Field Recycled . | . . . Retrieved Matter . | . . . Parts Self-Destructed 13 | . . 13 Prevented 1 | . . 1 Parts Restored . | . . . Kills | -11 -10 -10 ------- Run | Yrd Mat Sub Combat Hostiles Destroyed 19 | . 12 7 Guns 18 | . 12 6 AOE 1 | . . 1 Classes Destroyed 7 | . 6 1 Hauler 1 | . 1 . Recycler 1 | . 1 . Operator 3 | . 3 . Watcher 2 | . 2 . Swarmer 13 | . 6 7 Grunt 6 | . 6 . Artisan 1 | . . 1 Best Kill Streak 5 | . 5 4 Combat Bots Only 5 | . 5 4 Max Kills in Single Turn 1 | . 1 1 Gunslinging . | . . . Exploded 1 | . . 1 Melee . | . . . Uniques/NPCs Destroyed . | . . . Combat | -11 -10 -10 -------- Run | Yrd Mat Sub Hostile Shots Fired 114 | . 68 46 Missed 27 | . 16 11 Hits 87 | . 52 35 Projectile 87 | . 52 35 Damage Taken 1025 | . 467 558 Core 256 | . 70 186 Absorbed by Shields . | . . . Core Remaining (%) 100 | 100 . . Volleys Fired 93 | . 62 31 Largest 2 | . 2 2 Hottest 80 | . 80 80 Shots Fired 166 | . 123 43 Gun 166 | . 123 43 Cannon . | . . . Launcher . | . . . Special . | . . . Kinetic 47 | . 28 19 Thermal 73 | . 61 12 Explosive . | . . . Electromagnetic 46 | . 34 12 Robot Hit Streak 10 | . 8 10 Robot Miss Streak 5 | . 5 3 Penetration Max . | . . . Secondary Targets 2 | . 1 1 Max Gunslinging Chain 1 | . 1 1 Shots Hit Robots 98 | . 68 30 Core Hits 42 | . 31 11 Critical Kills . | . . . Critical Parts Destroyed . | . . . Critical Strikes 1 | . 1 . Burn 1 | . 1 . Melee Attacks . | . . . Impact . | . . . Slashing . | . . . Piercing . | . . . Sneak Attacks . | . . . Combat Hostiles . | . . . Follow-up Attacks . | . . . Damage Inflicted 1274 | . 891 383 Guns 1187 | . 840 347 Cannons . | . . . Explosions 84 | . 48 36 Melee . | . . . Ramming 3 | . 3 . Kinetic 323 | . 136 187 Thermal 583 | . 474 109 Explosive . | . . . Electromagnetic 365 | . 278 87 Impact . | . . . Slashing . | . . . Piercing . | . . . Highest Corruption . | . . . Average Corruption . | . . . Corruption Purged . | . . . Corruption Blocked . | . . . Overload Shots . | . . . Overflow Damage 4 | . 4 . Projectiles . | . . . Explosions 4 | . 4 . Melee . | . . . Knockbacks . | . . . Impact . | . . . Kinetic . | . . . Secondary . | . . . Self-Inflicted Damage 14 | . . 14 Shots 1 | . . 1 Rammed 3 | . 3 . Targets Rammed 3 | . 3 . Kicked . | . . . Crushed . | . . . Highest Temperature 141 | . 141 . Average Temperature 47 | . 47 . Received Heat Transfer 216 | . 93 123 Siege Activations . | . . . Martial Activations . | . . . Shielding Activations . | . . . Robots Disrupted . | . . . Combat Hostiles . | . . . Robots Corrupted . | . . . Combat Hostiles . | . . . Parts Fried 1 | . 1 . Impact Corruptions . | . . . Robots Melted . | . . . Combat Hostiles . | . . . Parts Melted 3 | . 3 . Heat Transferred 1442 | . 1217 225 Parts Sabotaged . | . . . Parts Stolen . | . . . Parts Stripped . | . . . Power Chain Reactions 2 | . 1 1 Alert | -11 -10 -10 ------- Run | Yrd Mat Sub Maximum Alert Level . | . . . Low Security (%) 100 | 100 100 . Level 1 . | . . . Level 2 . | . . . Level 3 . | . . . Level 4 . | . . . Level 5 . | . . . High Security . | . . . Max Security . | . . . Peak Influence 168 | . 168 . Initial . | . . . Average 28 | . 29 . Influence Increases 642 | . 402 240 Destroy 0b10 Robot/C 380 | . 240 140 Destroy 0b10 Robot/NC 35 | . 35 . Destroy Leader 76 | . 66 10 Successful Hack 28 | . 28 . Disable Machine 30 | . 30 . Destroy Structure 3 | . 3 . Lose Combat Pursuer 90 | . . 90 Influence Decreases 642 | . 402 240 Time Decay 592 | . 392 200 Lost Part 50 | . 10 40 Squads Dispatched 3 | . 3 . Investigation . | . . . Extermination . | . . . Reinforcement 3 | . 3 . Assault . | . . . Garrison . | . . . Intercept . | . . . Searches Triggered . | . . . Construction Impeded . | . . . Haulers Reinforced . | . . . Active Scanning Responses . | . . . Cargo Convoy Interrupts . | . . . Stealth | -11 -10 -10 --------- Run | Yrd Mat Sub Distress Signals 1 | . 1 . Communications Jammed . | . . . Distress Signals . | . . . Times Spotted 42 | . 31 11 Peak Tracking Total 7 | . 7 5 Tactical Retreats 3 | . . 3 Traps | -11 -10 -10 ------- Run | Yrd Mat Sub Traps Triggered . | . . . Indirectly . | . . . Trap Hack Attempts . | . . . Triggered . | . . . Disarmed . | . . . Reprogrammed . | . . . Reused . | . . . Traps Extracted . | . . . Installed . | . . . Triggered . | . . . Machines | -11 -10 -10 ---------- Run | Yrd Mat Sub Machines Disabled 2 | . 2 . Max in Single Turn 1 | . 1 . Machines Repaired . | . . . Machines Dismantled . | . . . Machines Sabotaged . | . . . Overloaded Fab Kills . | . . . Hacking | -11 -10 -10 --------- Run | Yrd Mat Sub Machines Accessed 5 | . 5 . Terminals 5 | . 5 . Fabricators . | . . . Repair Stations . | . . . Recycling Units . | . . . Scanalyzers . | . . . Garrison Access . | . . . Total Hacks 7 | . 7 . Successful 5 | . 5 . Failed 2 | . 2 . Catastrophic . | . . . Database Lockouts . | . . . Manual 7 | . 7 . Terminals 7 | . 7 . Fabricators . | . . . Repair Stations . | . . . Recycling Units . | . . . Scanalyzers . | . . . Garrison Access . | . . . Terminal Hacks . | . . . Fabricator Hacks . | . . . Repair Station Hacks . | . . . Recycling Unit Hacks . | . . . Scanalyzer . | . . . Garrison Access Hacks . | . . . Unauthorized Hacks 5 | . 5 . Terminals 5 | . 5 . Operators 1 | . 1 . Skim 4 | . 4 . Fabricators . | . . . Repair Stations . | . . . Recycling Units . | . . . Scanalyzers . | . . . Garrison Access . | . . . Data Cores Recovered . | . . . Used . | . . . Hacking Detections 1 | . 1 . Full Trace Events . | . . . Feedback Events . | . . . Feedback Blocked . | . . . Robot Schematics Acquired . | . . . Robots Built . | . . . Authchips . | . . . Time . | . . . Total Robot Build Rating . | . . . Part Schematics Acquired . | . . . Parts Built . | . . . Authchips . | . . . Time . | . . . Total Part Build Rating . | . . . Part Studies Acquired . | . . . Parts Repaired . | . . . Time . | . . . Parts Recycled . | . . . Recycled Matter . | . . . Retrieved Matter . | . . . Retrieved Components . | . . . Parts Scanalyzed . | . . . Part Schematics Acquired . | . . . Parts Damaged . | . . . Bothacking | -11 -10 -10 ------------ Run | Yrd Mat Sub Used RIF Installer . | . . . Robots Hacked . | . . . Non-combat . | . . . Combat . | . . . Robot Hacks Applied . | . . . Relay Couplers Released . | . . . Fabnet Peak Effective % . | . . . Robots Rewired . | . . . Allies Hacked . | . . . Hacks Repelled . | . . . Allies | -11 -10 -10 -------- Run | Yrd Mat Sub Total Allies . | . . . Largest Group . | . . . Highest-Rated Group . | . . . Highest-Rated Ally . | . . . Total Orders . | . . . Ally Attacks . | . . . Total Damage . | . . . Kills . | . . . Allies Corrupted . | . . . Allies Melted . | . . . Intel | -11 -10 -10 ------- Run | Yrd Mat Sub Active Infowar (turns) 2717 | . 1806 911 Seismic 2717 | . 1806 911 Robot Analysis Total . | . . . Derelict Logs Recovered 1 | . . 1 Drone Launches . | . . . Drone Recoveries . | . . . Exploration | -11 -10 -10 ------------- Run | Yrd Mat Sub Turns Passed 2845 | 85 1813 947 Spaces Moved 1109 | 49 695 365 Core 3 | 2 . 1 Treads 685 | 47 638 . Legs . | . . . Wheels 421 | . 57 364 Hover . | . . . Flight . | . . . Fastest Speed 50 | 50 160 175 Average Speed 214 | 155 227 198 Slowest Speed 1500 | 160 320 1500 Overloaded Moves . | . . . Propulsion Burnouts . | . . . Robots Hopped . | . . . Potential Cave-ins . | . . . Cave-ins Triggered . | . . . Exploration Rate (%) 45 | 4 95 37 Regions Visited 2 Branch Regions 1 Pre-discovered Areas . | . . . Known Exits Taken . | . . . Unknown Exits Taken 2 | 1 1 . Scrap Searched . | . . . Spaces Dug . | . . . Terrain Destroyed 7 | . 3 4 Melee . | . . . Projectile . | . . . AOE 7 | . 3 4 Terrain Rammed . | . . . Walls Destroyed . | . . . Machines Disabled . | . . . Actions | -11 -10 -10 --------- Run | Yrd Mat Sub Total 1410 | 55 808 547 Wait 159 | . 19 140 Move 1107 | 48 694 365 Hop . | . . . Pick Up 24 | 1 16 7 Fast Attach 8 | 6 2 . Attach 6 | . 2 4 Detach . | . . . Swap 3 | . 3 . Drop 7 | . 7 . Fire 93 | . 62 31 Melee . | . . . Ram . | . . . Kick . | . . . Crush 3 | . 3 . Escape Stasis . | . . . Rewire . | . . . Trap . | . . . Miscellaneous . | . . . Route ------- -11/Scrapyard -10/Materials (discovered 5 exits: [*Mat x3] / [*Min] / [*Sub]) -10/Subcaves (discovered 2 exits: [*Mat] / [*Rec]) History --------- Turn | Location | Event 18 | -11/Scrapyard | Discovered new exit (range 15) 86 | -11/Scrapyard | Entered Materials 304 | -10/Materials | Build established: Mutant 544 | -10/Materials | Discovered new exit (range 7) 777 | -10/Materials | Discovered new exit (range 13) 956 | -10/Materials | Discovered new exit (range 12) 1301 | -10/Materials | Discovered new exit (range 6) 1889 | -10/Materials | Discovered new exit (range 7) 1899 | -10/Materials | Entered Subcaves 1900 | -10/Subcaves | Approached by a straggling Scientist 2169 | -10/Subcaves | Discovered new exit (range 10) 2232 | -10/Subcaves | Shifting Twisted Machinery released Sub. Beam Cannon 2242 | -10/Subcaves | Core integrity fell below 50% 2273 | -10/Subcaves | Shifting Twisted Machinery released Mak. Kinetic Plating 2427 | -10/Subcaves | Discovered new exit (range 7) 2430 | -10/Subcaves | Shifting Twisted Machinery released Battle Rifle 2660 | -10/Subcaves | Shifting Twisted Machinery released Riot Gun 2818 | -10/Subcaves | Disturbed a concealed Subdweller 2841 | -10/Subcaves | Core integrity fell below 20% 2846 | -10/Subcaves | Destroyed by A7-NGZ(R) with Subdweller Beam Cannon Last Messages --------------- Machinery. 02439_ Acquired Battle Rifle. Riot Gun falls loose from the Twisted Machinery. 02662_ LL-IAH(u) deconstructs Twisted Machinery. 02665_ Acquired Riot Gun. 02670_ LL-IAH(u) cries out in pain. 02670_ LL-IAH(u) destroyed. 02671_ Subatomizers dissect the Multitool. 02674_ Acquired Multitool. 02675_ Acquired 22 matter. 02683_ Acquired Wheel. 02818_ A7-NGZ(R) angrily emerges from the Twisted Machinery. 02818_ Seismic Detector destroyed. 02821_ EM Pulse Gun destroyed. 02825_ A7-NGZ(R) affixes Scrap Shield Fragment to Scrap Shield. 02838_ Lgt. Treads destroyed. 02840_ Wheel destroyed. Map ----- +----------------------------------------------------+ | | | | | | | | | | | | | | | | | | | | | | | | | | | ????????????????????????????????????????????????? | | ????????????????????????????????????????????????? | | ????????????????????????????????????????????????? | | ????????????????????????????????????????????????? | | ????????????????????????????????????????????????? | | ????????????????????????????????????????????????? | | ????????????????????????????????????????????????? | | ????????????????????????????????????????????????? | | ??????????????????????????##????????????????????? | | ??????????????????????????<#????????????????????? | | ????????????????????????##R#????????????????????? | | ???????????????????????## #????????????????????? | | ???????#####?????????### @#?????????????????????? | | ???????? ???#?????# ## ##????????????????????? | | ?##????? ##?? ?????# < <#????????????????????? | | # #????## "#?? ##???# ##???????????????????? | | ##?###" ##?# ##??# #???????????????????? | | ### " ## #??## #???????????????????? | | ? #???# #???????????????????? | | #### #?##### ##???????????????????? | | #??# ### #### #????????????????????? | | ##????# ## #????????????????????? | | #??????# ##???????????????????? | | ######### #???????????????????? | | # # ## # ## #???????????????????? | | ###### ##???????????????????? | | ########???? ????????????????????? | | # ####??????????# ##???????????????????? | | ### #?????????????## #????????????????????? | | ??## #??????????????## #????????????????????? | | ???## #???????????????? #????????????????????? | | #???####???????????????? ????????????????????? | | ??????????????????????? ???????????????????? | | ##?????????????????????## ???????????????????? | | #??????????????????????## ???????????????????? | | ##??????????????????????? ????????????????????? | | ""##?????????????????????? ?????????????????????? | +----------------------------------------------------+ Best States ------------- Heat Dissipation 25 Energy Generation 10 Energy Capacity 250 Matter Stores 300 Matter Capacity 300 Sight Range 16 Terrain Scan Density 10 Evasion (%) 40 Recoil Reduction 2 Item Schematics ----------------- None Robot Schematics ------------------ None Fabricated ------------ Nothing Repaired ---------- Nothing Studied --------- None Alien Tech Used ----------------- None Achievements -------------- None Challenges ------------ None Game ------ Seed CompactTrackerBlade Manual? 0 Play Time 00:13:05 Cumulative 562.5 hours Start 2025.11.19 @ 10:54:32 End 2025.11.19 @ 11:17:42 Sessions 1 Manual Loads 0 Difficulty Rogue Special Mode None Game No. 898 Rogue 743 Adventurer 148 Explorer 7 Win Type - Total 26 Types 20/1/4/1/0/0/0/0/0/0 Lore% 81 Gallery% 83 Achievement% 68 Wizard Run 0 Options --------- Layout 1 ASCII 0 Keyboard 0 Movement Numpad Keybinds 0 Fullscreen 2 Font 24/Smallcaps Map View 50x35 Zoom Use 0% Tactical HUD 1 Map Filters NONE Filters NONE Steam 1 RUN: 6e53b083-5866-43ee-a670-409109488482